fUST/lending_fUST_20250425
["ID","MTS","AMOUNT","RATE_DAILY","PERIOD"]
[358956049,1745587833536,-500.0,0.00015292,2]
[358956050,1745587833546,-500.0,0.00015292,2]
[358956051,1745587833555,-404.56767946,0.00015292,2]
[358956052,1745587833565,-697.88056553,0.000153,2]
[358956053,1745587833574,-500.0,0.00015566,2]
[358956054,1745587833584,-1000.0,0.00016,2]
[358956055,1745587833593,-5000.0,0.000161,2]
[358956056,1745587833603,-841.17561014,0.000161,2]
[358956057,1745587833613,-11785.93948263,0.0001615,2]
[358956066,1745587838484,-500.0,0.00015291,2]
[358956067,1745587838494,-217.77847844,0.00015291,2]
[358956068,1745587838505,-3454.44380932,0.0001615,2]
[358956069,1745587838517,-1707.86395211,0.0001615,2]
[358956070,1745587838528,-638.44518166,0.0001615,2]
[358956071,1745587838544,-1554.2743461,0.0001615,2]
[358956077,1745587840930,-12886.13597736,0.0001615,2]
[358956598,1745587846577,-15239.15725082,0.0001615,2]
[358956601,1745587846587,-841.17561014,0.0001616,2]
[358956603,1745587846596,-500.0,0.00016164,2]
[358956604,1745587846605,-500.0,0.00016164,2]
[358956606,1745587846615,-192.06097456,0.00016164,2]
[358956608,1745587846624,-500.0,0.00016173,2]
[358956610,1745587846633,-526.19308115,0.00016173,2]
[358956613,1745587846643,-500.0,0.00016173,2]
[358956614,1745587846652,-378.63524468,0.00016173,2]
[358956616,1745587846661,-400.08867886,0.00016173,2]
[358956619,1745587846671,-500.75199974,0.00016173,2]
[358956620,1745587846680,-500.0,0.00016173,2]
[358956623,1745587846690,-500.0,0.00016173,2]
[358956625,1745587846699,-492.35878879,0.00016173,2]
[358956628,1745587846709,-515.43856953,0.00016173,2]
[358956630,1745587846718,-500.0,0.00016173,2]
[358956632,1745587846727,-500.0,0.00016173,2]
[358956634,1745587846736,-500.0,0.00016173,2]
[358956636,1745587846746,-500.0,0.00016173,2]
[358956638,1745587846755,-500.0,0.00016173,2]
[358956640,1745587846764,-500.0,0.00016173,2]
[358956642,1745587846773,-500.0,0.00016173,2]
[358956644,1745587846783,-500.0,0.00016173,2]
[358956646,1745587846793,-500.0,0.00016173,2]
[358956648,1745587846802,-500.0,0.00016173,2]
[358956650,1745587846812,-311.48291134,0.00016173,2]
[358956652,1745587846821,-500.0,0.00016173,2]
[358956654,1745587846830,-500.0,0.00016173,2]
[358956656,1745587846840,-500.0,0.00016173,2]
[358956658,1745587846849,-500.0,0.00016173,2]
[358956660,1745587846858,-500.0,0.00016173,2]
[358956662,1745587846867,-500.0,0.00016173,2]
[358956664,1745587846876,-500.0,0.00016173,2]
[358956666,1745587846886,-243.8117639,0.0001618,2]
[358956668,1745587846895,-151.0,0.0001619,2]
[358956670,1745587846906,-207.4,0.0001619,2]
[358956672,1745587846916,-49684.33882229,0.000162,2]
[358956960,1745587851119,1000.0,0.00014996,2]
[358959387,1745588160859,475.30372284,0.00015,2]
[358959390,1745588842321,-832.5837333,0.0001514,2]
[358959391,1745588842344,-300.0,0.00015281,2]
[358959392,1745588842370,-846.17876212,0.00015281,2]
[358959393,1745588851127,-353.82123788,0.00015281,2]
[358959394,1745588851152,-235.02244496,0.00015281,2]
[358959397,1745589032791,-300.0,0.00015279,2]
[358959398,1745589032811,-1200.0,0.00015279,2]
[358959399,1745589032823,-385.60435896,0.0001528,2]
[358959401,1745589032851,-114.39564104,0.0001528,2]
[358959402,1745589032862,-500.0,0.0001528,2]
[358959403,1745589032873,-500.0,0.0001528,2]
[358959404,1745589032883,-500.0,0.0001528,2]
[358959405,1745589032893,-500.0,0.0001528,2]
[358959406,1745589032903,-247.44554246,0.0001528,2]
[358959407,1745589032913,-500.0,0.0001528,2]
[358959408,1745589032923,-500.0,0.0001528,2]
[358959409,1745589032933,-585.49302206,0.000161,2]
[358959410,1745589032943,-613.19938581,0.00016149,2]
[358959411,1745589032953,-495.38806346,0.00016149,2]
[358959412,1745589032963,-29163.77088537,0.0001615,2]
[358959413,1745589032975,-10264.08558876,0.0001615,2]
[358959414,1745589032992,-414.1104975,0.0001615,2]
[358959516,1745589038774,-1271.29724722,0.0001615,2]
[358959517,1745589038786,-2524.47411582,0.0001615,2]
[358959518,1745589038798,-1672.54166533,0.0001615,2]
[358959519,1745589038808,-145.66653049,0.0001616,2]
[358959683,1745589045499,-439.82649154,0.0001616,2]
[358959685,1745589045509,-500.0,0.00016164,2]
[358959687,1745589045518,-573.93147114,0.00016164,2]
[358959689,1745589045527,-500.0,0.00016173,2]
[358959690,1745589045537,-500.0,0.00016173,2]
[358959692,1745589045546,-500.0,0.00016173,2]
[358959694,1745589045555,-500.0,0.00016173,2]
[358959695,1745589045568,-500.0,0.00016173,2]
[358959697,1745589045580,-500.0,0.00016173,2]
[358959699,1745589045589,-500.0,0.00016173,2]
[358959701,1745589045598,-500.0,0.00016173,2]
[358959702,1745589045609,-166.59116428,0.00016173,2]
[358959706,1745589045628,-333.40883572,0.00016173,2]
[358959707,1745589045639,-501.75562334,0.00016173,2]
[358959709,1745589045648,-500.0,0.00016173,2]
[358959711,1745589045658,-500.0,0.00016173,2]
[358959712,1745589045666,-500.0,0.00016173,2]
[358959714,1745589045675,-32.19314452,0.00016173,2]
[358959779,1745589046870,-500.0,0.00015279,2]
[358959780,1745589046933,-282.94219849,0.00016173,2]
[358960627,1745589564603,20944.48962691,0.00025,30]
[358960631,1745590037104,-160.0,0.00016062,2]
[358960632,1745590037127,-1097.29341085,0.00016073,2]
[358960633,1745590037149,-381.59118422,0.000161,2]
[358960634,1745590037171,-258.78674384,0.0001616,2]
[358960635,1745590051099,-122.80444035,0.0001616,2]
[358960636,1745590051122,-75.07180919,0.00016171,2]
[358960676,1745590232139,-228.95471053,0.000161,2]
[358960678,1745590232150,-228.95471051,0.0001616,2]
[358960680,1745590232161,-1200.0,0.00016171,2]
[358960682,1745590232171,-300.0,0.00016171,2]
[358960684,1745590232180,-446.45823238,0.00016172,2]
[358960686,1745590232190,-500.0,0.00016172,2]
[358960688,1745590232200,-500.0,0.00016172,2]
[358960690,1745590232210,-500.0,0.00016172,2]
[358960692,1745590232219,-500.0,0.00016172,2]
[358960694,1745590232230,-500.0,0.00016172,2]
[358960696,1745590232239,-569.61465726,0.00016172,2]
[358960698,1745590232251,-500.0,0.00016173,2]
[358960699,1745590232260,-500.0,0.00016173,2]
[358960700,1745590232269,-500.0,0.00016173,2]
[358960701,1745590232279,-500.0,0.00016173,2]
[358960702,1745590232491,-513.8566851,0.00016173,2]
[358960703,1745590232502,-184.86465699,0.00016173,2]
[358960704,1745590232511,-12723.64522144,0.00016173,2]
[358960722,1745590237924,-348.28,0.00016173,2]
[358960744,1745590240302,-4404.50416184,0.00016173,2]
[358960748,1745590240375,-403.3728666,0.00016173,2]
[358960766,1745590245920,-500.0,0.00016173,2]
[358960767,1745590245930,-500.0,0.00016173,2]
[358960768,1745590245940,-500.0,0.00016173,2]
[358960770,1745590245950,-500.0,0.00016173,2]
[358960771,1745590245960,-500.0,0.00016173,2]
[358960772,1745590245969,-500.0,0.00016173,2]
[358960773,1745590245979,-501.43373209,0.00016173,2]
[358960774,1745590245990,-588.19778783,0.00016173,2]
[358960775,1745590246000,-500.0,0.00016173,2]
[358960776,1745590246010,-500.0,0.00016173,2]
[358960777,1745590246019,-392.28262339,0.00016173,2]
[358960778,1745590246028,-500.0,0.00016173,2]
[358960779,1745590246037,-500.0,0.00016173,2]
[358960780,1745590246047,-429.23957006,0.00016198,2]
[358960781,1745590246056,-500.0,0.00016198,2]
[358960782,1745590246065,-251.75202979,0.00016198,2]
[358960783,1745590246074,-212251.96637515,0.00016199,2]
[358960784,1745590246084,-20215.98332925,0.000162,2]
[358960785,1745590246137,-116908.82441285,0.000162,2]
[358960786,1745590246151,-4939.0846938,0.000162,2]
[358960787,1745590246163,-37770.03176769,0.000162,2]
[358960800,1745590768651,-539.5233907,0.00015185,2]
[358960801,1745590768677,-300.0,0.00015997,2]
[358960802,1745590768703,-500.0,0.00015998,2]
[358960803,1745590768743,-500.0,0.00015998,2]
[358960804,1745590768772,-500.0,0.00015998,2]
[358960805,1745590768808,-500.0,0.00015998,2]
[358960806,1745590768835,-370.09932525,0.00015998,2]
[358960807,1745590768869,-500.0,0.00015998,2]
[358960808,1745590768903,-500.0,0.00015998,2]
[358960809,1745590768937,-500.0,0.00015998,2]
[358960810,1745590768974,-564.82921153,0.00015998,2]
[358960811,1745590769219,-500.0,0.00015998,2]
[358960812,1745590769255,-500.0,0.00015998,2]
[358960813,1745590769288,-500.0,0.00015998,2]
[358960814,1745590769322,-500.0,0.00015998,2]
[358960815,1745590769358,-500.0,0.00015998,2]
[358960816,1745590769392,-500.0,0.00015998,2]
[358960817,1745590769426,-500.0,0.00015998,2]
[358960818,1745590769462,-500.0,0.00015998,2]
[358960819,1745590769487,-500.0,0.00015998,2]
[358960820,1745590769510,-175.02352622,0.00015998,2]
[358960821,1745590769545,-500.0,0.00015998,2]
[358960822,1745590769578,-500.0,0.00015998,2]
[358960823,1745590769614,-500.0,0.00015998,2]
[358960824,1745590769648,-500.0,0.00015998,2]
[358960825,1745590769680,-500.0,0.00015998,2]
[358960826,1745590769714,-500.0,0.00015998,2]
[358960827,1745590769746,-500.0,0.00015998,2]
[358960828,1745590769780,-500.0,0.00015998,2]
[358960829,1745590769814,-500.0,0.00015998,2]
[358960830,1745590769849,-500.0,0.00015998,2]
[358960831,1745590769883,-500.0,0.00015998,2]
[358960832,1745590769916,-500.0,0.00015998,2]
[358960833,1745590769947,-500.0,0.00015998,2]
[358960834,1745590769979,-318.09194073,0.00015998,2]
[358960835,1745590770001,-12294.93589177,0.00015999,2]
[358960836,1745590770025,-223.266,0.00015999,2]
[358960837,1745590770052,-441.24256637,0.00015999,2]
[358960838,1745590770079,-313.65337249,0.00015999,2]
[358960839,1745590770102,-63530.02079507,0.00016,2]
[358960840,1745590770126,-960.13173445,0.00016,2]
[358960841,1745590770151,-1554.27,0.0001615,2]
[358960842,1745590770174,-526.22642086,0.00016164,2]
[358960843,1745590770197,-1200.0,0.00016169,2]
[358960844,1745590770224,-102188.68582456,0.000162,2]
[358960871,1745591230090,-327.1960002,0.00015199,2]
[358960873,1745591238094,-1438.0330958,0.00015199,2]
[358960874,1745591238115,-197.83608001,0.00015897,2]
[358960875,1745591238135,-300.0,0.00015999,2]
[358960876,1745591238155,-17215.78090786,0.00016,2]
[358960879,1745591252333,-1066.35148042,0.00016,2]
[358960881,1745591283688,151.0,0.000149,2]
[358960882,1745591284026,151.0,0.000143,2]
[358960883,1745591284387,151.0,0.000138,2]
[358960884,1745591284699,151.0,0.000132,2]
[358960885,1745591285009,151.0,0.000127,2]
[358960886,1745591285558,151.0,0.000121,2]
[358960887,1745591285975,151.0,0.000116,2]
[358960888,1745591286307,151.0,0.00011,2]
[358960953,1745591432267,-151.0,0.000154,2]
[358960954,1745591432278,-840.11526767,0.000159,2]
[358960955,1745591432288,-742.93,0.0001599,3]
[358960956,1745591432300,-682.0,0.00015998,2]
[358960957,1745591432310,-300.0,0.00015998,2]
[358960958,1745591432320,-169.40893824,0.00015998,2]
[358960959,1745591432330,-500.0,0.00015998,2]
[358960960,1745591432342,-348.30797478,0.00015998,2]
[358960961,1745591432353,-500.0,0.00015998,2]
[358960962,1745591432363,-540.46346222,0.00015998,2]
[358960963,1745591432372,-500.0,0.00015998,2]
[358960964,1745591432382,-500.0,0.00015998,2]
[358960965,1745591432536,-500.0,0.00015998,2]
[358960966,1745591432547,-500.0,0.00015998,2]
[358960967,1745591432557,-500.0,0.00015998,2]
[358960968,1745591432567,-291.03695179,0.00015999,2]
[358960969,1745591432576,-147.08340989,0.00015999,2]
[358960970,1745591432612,-500.0,0.00015998,2]
[358960971,1745591432622,-271.87386231,0.00015999,2]
[358960972,1745591432632,-181717.86761172,0.00016,2]
[358960973,1745591432642,-18283.0,0.00016,2]
[358960975,1745591432653,-151.0,0.00016,2]
[358960976,1745591432663,-497.59656301,0.00016164,2]
[358960977,1745591432673,-38293.05114956,0.000162,2]
[358960978,1745591432683,-810.0,0.000162,2]
[358960979,1745591432692,-159.0,0.000162,2]
[358960980,1745591432702,-161.01797495,0.000162,2]
[358960981,1745591432711,-159.0,0.000162,2]
[358960982,1745591432721,-359.0,0.000162,2]
[358960983,1745591432730,-359.0,0.000162,2]
[358960984,1745591432739,-359.0,0.000162,2]
[358960985,1745591432749,-359.0,0.000162,2]
[358960986,1745591432758,-319.0,0.000162,2]
[358960987,1745591432768,-359.0,0.000162,2]
[358960988,1745591432778,-319.0,0.000162,2]
[358960989,1745591432787,-359.0,0.000162,2]
[358960990,1745591432796,-319.0,0.000162,2]
[358960991,1745591432806,-359.0,0.000162,2]
[358960992,1745591432815,-359.0,0.000162,2]
[358960993,1745591432824,-319.0,0.000162,2]
[358960994,1745591432833,-359.0,0.000162,2]
[358960995,1745591432842,-319.0,0.000162,2]
[358960996,1745591432851,-319.0,0.000162,2]
[358960997,1745591432861,-359.0,0.000162,2]
[358960998,1745591432870,-359.0,0.000162,2]
[358960999,1745591432879,-319.0,0.000162,2]
[358961000,1745591432888,-282.01915398,0.000162,2]
[358961001,1745591432898,-319.0,0.000162,2]
[358961002,1745591432907,-359.0,0.000162,2]
[358961003,1745591432916,-319.0,0.000162,2]
[358961004,1745591432925,-359.0,0.000162,2]
[358961005,1745591432934,-319.0,0.000162,2]
[358961006,1745591432944,-359.0,0.000162,2]
[358961007,1745591432953,-319.0,0.000162,2]
[358961008,1745591432963,-359.0,0.000162,2]
[358961009,1745591432972,-319.0,0.000162,2]
[358961010,1745591432982,-359.0,0.000162,2]
[358961011,1745591432991,-319.0,0.000162,2]
[358961012,1745591432999,-359.0,0.000162,2]
[358961013,1745591433009,-359.0,0.000162,2]
[358961014,1745591433018,-319.0,0.000162,2]
[358961015,1745591433028,-359.0,0.000162,2]
[358961016,1745591433037,-319.0,0.000162,2]
[358961017,1745591433046,-319.0,0.000162,2]
[358961018,1745591433056,-319.0,0.000162,2]
[358961019,1745591433066,-319.0,0.000162,2]
[358961020,1745591433076,-319.0,0.000162,2]
[358961021,1745591433085,-319.0,0.000162,2]
[358961022,1745591433094,-370.19998625,0.000162,2]
[358961023,1745591433104,-20590.96748158,0.000162,2]
[358961024,1745591433113,-359.0,0.000162,2]
[358961025,1745591433122,-359.0,0.000162,2]
[358961026,1745591433131,-359.0,0.000162,2]
[358961027,1745591433140,-359.0,0.000162,2]
[358961028,1745591433149,-359.0,0.000162,2]
[358961029,1745591433159,-359.0,0.000162,2]
[358961030,1745591433169,-359.0,0.000162,2]
[358961031,1745591433179,-359.0,0.000162,2]
[358961032,1745591433188,-2257.0,0.00016219,2]
[358961033,1745591433198,-396.6300273,0.00016273,2]
[358961034,1745591433207,-415.07526879,0.00016274,2]
[358961035,1745591433216,-174.8734064,0.000163,2]
[358961036,1745591433225,-174.8734064,0.000163,2]
[358961037,1745591433234,-18224.54687359,0.00016319,2]
[358961038,1745591433243,-152.0,0.00016321,2]
[358961039,1745591433257,-61287.80882009,0.0001638,2]
[358961040,1745591433848,-4624.983028,0.0001638,2]
[358961067,1745591438104,-378.09345425,0.000159,2]
[358961069,1745591438115,-500.0,0.00015998,2]
[358961071,1745591438124,-24696.69262656,0.0001638,2]
[358961073,1745591438134,-151.0,0.000164,2]
[358961075,1745591438144,-356.6749358,0.000164,2]
[358961077,1745591438153,-151.0,0.000164,2]
[358961079,1745591438163,-174.8734064,0.000164,2]
[358961081,1745591438173,-249.37767511,0.00016428,2]
[358961083,1745591438182,-207.4,0.00016428,2]
[358961085,1745591438192,-151.0,0.00016428,2]
[358961087,1745591438201,-151.0,0.00016428,2]
[358961089,1745591438210,-840.21051354,0.00016437,2]
[358961091,1745591438220,-160.0,0.00016437,2]
[358961093,1745591438229,-151.0,0.00016438,2]
[358961095,1745591438239,-151.0,0.00016438,2]
[358961097,1745591438248,-151.0,0.00016438,2]
[358961099,1745591438260,-151.0,0.00016438,2]
[358961101,1745591438272,-151.0,0.00016438,2]
[358961103,1745591438281,-151.0,0.00016438,2]
[358961105,1745591438291,-166.569051,0.00016438,2]
[358961107,1745591438300,-151.146994,0.00016438,2]
[358961109,1745591438311,-258.73386,0.00016438,2]
[358961111,1745591438320,-151.0,0.00016438,2]
[358961113,1745591438329,-151.0,0.00016438,2]
[358961116,1745591438342,-151.0,0.00016438,2]
[358961119,1745591438352,-151.0,0.00016438,2]
[358961121,1745591438362,-151.0,0.00016438,2]
[358961123,1745591438372,-151.0,0.00016438,2]
[358961126,1745591438381,-151.0,0.00016438,2]
[358961128,1745591438390,-151.0,0.00016438,2]
[358961130,1745591438400,-182.21675,0.00016438,2]
[358961132,1745591438409,-151.0,0.00016438,2]
[358961133,1745591438419,-152.146626,0.00016438,2]
[358961136,1745591438428,-151.0,0.00016438,2]
[358961137,1745591438438,-151.0,0.00016438,2]
[358961139,1745591438447,-151.0,0.00016438,2]
[358961141,1745591438457,-153.721826,0.00016438,2]
[358961143,1745591438468,-500.0,0.00016438,2]
[358961145,1745591438477,-501.15550901,0.00016438,2]
[358961147,1745591438486,-416.27619749,0.00016438,2]
[358961149,1745591438496,-151.0,0.00016438,2]
[358961151,1745591438508,-151.0,0.00016438,2]
[358961153,1745591438517,-500.0,0.00016438,2]
[358961155,1745591438527,-151.0,0.00016438,2]
[358961157,1745591438537,-151.0,0.00016438,2]
[358961159,1745591438546,-151.0,0.00016438,2]
[358961161,1745591438555,-151.0,0.00016438,2]
[358961162,1745591438565,-151.0,0.00016438,2]
[358961164,1745591438574,-151.0,0.00016438,2]
[358961166,1745591438583,-151.0,0.00016438,2]
[358961168,1745591438592,-162.172524,0.00016438,2]
[358961171,1745591438602,-500.0,0.00016438,2]
[358961172,1745591438611,-500.0,0.00016438,2]
[358961174,1745591438620,-500.0,0.00016438,2]
[358961176,1745591438630,-159.54629284,0.00016438,2]
[358961178,1745591438639,-500.0,0.00016438,2]
[358961181,1745591438649,-369.41057379,0.00016438,2]
[358961183,1745591438664,-130.58942621,0.00016438,2]
[358961185,1745591438674,-500.0,0.00016438,2]
[358961187,1745591438683,-500.0,0.00016438,2]
[358961189,1745591438692,-500.0,0.00016438,2]
[358961191,1745591438701,-500.0,0.00016438,2]
[358961193,1745591438710,-500.0,0.00016438,2]
[358961195,1745591438719,-500.0,0.00016438,2]
[358961197,1745591438729,-500.0,0.00016438,2]
[358961199,1745591438738,-500.0,0.00016438,2]
[358961201,1745591438749,-500.0,0.00016438,2]
[358961203,1745591438761,-151.0,0.00016438,2]
[358961205,1745591438770,-151.0,0.00016438,2]
[358961207,1745591438780,-151.0,0.00016438,2]
[358961210,1745591438794,-500.0,0.00016438,2]
[358961212,1745591438804,-151.0,0.00016438,2]
[358961214,1745591438814,-151.0,0.00016438,2]
[358961216,1745591438823,-151.0,0.00016438,2]
[358961218,1745591438832,-151.0,0.00016438,2]
[358961220,1745591438842,-151.0,0.00016438,2]
[358961222,1745591438851,-151.0,0.00016438,2]
[358961224,1745591438861,-151.0,0.00016438,2]
[358961226,1745591438870,-151.0,0.00016438,2]
[358961228,1745591438880,-165.293968,0.00016438,2]
[358961230,1745591438889,-151.0,0.00016438,2]
[358961232,1745591438899,-151.0,0.00016438,2]
[358961234,1745591438909,-151.0,0.00016438,2]
[358961236,1745591438918,-151.0,0.00016438,2]
[358961238,1745591438927,-151.0,0.00016438,2]
[358961240,1745591438938,-151.0,0.00016438,2]
[358961242,1745591438948,-205.98457,0.00016438,2]
[358961244,1745591438957,-500.0,0.00016438,2]
[358961246,1745591438967,-151.0,0.00016438,2]
[358961248,1745591438976,-151.0,0.00016438,2]
[358961249,1745591438985,-151.0,0.00016438,2]
[358961250,1745591438994,-151.0,0.00016438,2]
[358961251,1745591439004,-500.0,0.00016438,2]
[358961252,1745591439014,-151.0,0.00016438,2]
[358961253,1745591439024,-500.0,0.00016438,2]
[358961254,1745591439033,-500.0,0.00016438,2]
[358961255,1745591439043,-151.0,0.00016438,2]
[358961256,1745591439052,-151.0,0.00016438,2]
[358961257,1745591439061,-151.0,0.00016438,2]
[358961258,1745591439070,-151.0,0.00016438,2]
[358961259,1745591439079,-151.0,0.00016438,2]
[358961260,1745591439089,-151.0,0.00016438,2]
[358961261,1745591439098,-151.0,0.00016438,2]
[358961262,1745591439107,-114.7440812,0.00016438,2]
[358961263,1745591439123,-36.2559188,0.00016438,2]
[358961264,1745591439133,-151.0,0.00016438,2]
[358961265,1745591439142,-151.0,0.00016438,2]
[358961266,1745591439151,-151.0,0.00016438,2]
[358961267,1745591439161,-151.0,0.00016438,2]
[358961268,1745591439170,-151.0,0.00016438,2]
[358961269,1745591439179,-151.0,0.00016438,2]
[358961270,1745591439191,-151.0,0.00016438,2]
[358961271,1745591439200,-151.0,0.00016438,2]
[358961272,1745591439211,-239.82436,0.00016438,2]
[358961273,1745591439221,-379.91735565,0.00016438,2]
[358961274,1745591439235,-120.08264435,0.00016438,2]
[358961275,1745591439245,-500.0,0.00016438,2]
[358961276,1745591439256,-151.0,0.00016438,2]
[358961277,1745591439268,-500.0,0.00016438,2]
[358961278,1745591439277,-500.0,0.00016438,2]
[358961280,1745591439286,-500.0,0.00016438,2]
[358961281,1745591439295,-500.0,0.00016438,2]
[358961282,1745591439306,-500.0,0.00016438,2]
[358961285,1745591439317,-500.00000001,0.00016438,2]
[358961287,1745591439328,-500.0,0.00016438,2]
[358961288,1745591439339,-500.0,0.00016438,2]
[358961291,1745591439349,-151.0,0.00016438,2]
[358961292,1745591439359,-151.0,0.00016438,2]
[358961294,1745591439369,-500.0,0.00016438,2]
[358961297,1745591439379,-151.0,0.00016438,2]
[358961299,1745591439388,-151.0,0.00016438,2]
[358961301,1745591439398,-151.0,0.00016438,2]
[358961303,1745591439407,-500.0,0.00016438,2]
[358961305,1745591439416,-175.856592,0.00016438,2]
[358961307,1745591439426,-500.0,0.00016438,2]
[358961308,1745591439436,-500.0,0.00016438,2]
[358961311,1745591439446,-500.35063545,0.00016438,2]
[358961312,1745591439455,-500.0,0.00016438,2]
[358961314,1745591439465,-500.0,0.00016438,2]
[358961316,1745591439475,-500.0,0.00016438,2]
[358961318,1745591439485,-500.0,0.00016438,2]
[358961320,1745591439494,-500.0,0.00016438,2]
[358961323,1745591439506,-500.0,0.00016438,2]
[358961324,1745591439516,-500.0,0.00016438,2]
[358961326,1745591439526,-500.0,0.00016438,2]
[358961328,1745591439535,-500.0,0.00016438,2]
[358961331,1745591439546,-500.0,0.00016438,2]
[358961332,1745591439555,-500.0,0.00016438,2]
[358961335,1745591439564,-500.0,0.00016438,2]
[358961339,1745591439574,-500.0,0.00016438,2]
[358961341,1745591439584,-500.0,0.00016438,2]
[358961343,1745591439593,-500.0,0.00016438,2]
[358961345,1745591439603,-500.0,0.00016438,2]
[358961347,1745591439612,-500.0,0.00016438,2]
[358961349,1745591439622,-500.0,0.00016438,2]
[358961351,1745591439631,-500.0,0.00016438,2]
[358961352,1745591439640,-442.9605354,0.00016438,2]
[358961355,1745591439650,-500.0,0.00016438,2]
[358961357,1745591439660,-500.0,0.00016438,2]
[358961358,1745591439669,-295.54151434,0.00016438,2]
[358961360,1745591439679,-151.0,0.00016438,2]
[358961362,1745591439688,-151.0,0.00016438,2]
[358961364,1745591439698,-151.0,0.00016438,2]
[358961366,1745591439708,-151.0,0.00016438,2]
[358961368,1745591439717,-500.0,0.00016438,2]
[358961370,1745591439727,-151.0,0.00016438,2]
[358961373,1745591439736,-151.0,0.00016438,2]
[358961376,1745591439746,-151.0,0.00016438,2]
[358961378,1745591439757,-371.45494195,0.00016438,2]
[358961381,1745591439773,-128.54505805,0.00016438,2]
[358961383,1745591439782,-500.0,0.00016438,2]
[358961385,1745591439792,-279.77404612,0.00016438,2]
[358961405,1745591439948,-1908.58288788,0.00016438,2]
[358961407,1745591439958,-737.95313742,0.00016438,2]
[358961409,1745591439971,-345.65443761,0.00016438,2]
[358961476,1745591440627,-378.09345425,0.0001601,2]
[358961478,1745591440637,-9134.30654575,0.00016437,2]
[358961481,1745591440656,-461.69512936,0.00016437,2]
[358961778,1745591443776,-378.09345425,0.00016119,2]
[358961779,1745591443785,-378.09345425,0.00016229,2]
[358961781,1745591443795,-158.682982,0.00016328,2]
[358961783,1745591443805,-2983.26715113,0.00016437,2]
[358961785,1745591443814,-1104.74935897,0.00016438,2]
[358961787,1745591443823,-341.2908402,0.00016438,2]
[358962008,1745591446219,-378.09345425,0.00016338,2]
[358962009,1745591446229,-1847.0660938,0.00016438,2]
[358962011,1745591446239,-500.0,0.00016438,2]
[358962013,1745591446249,-2188.356934,0.00016438,2]
[358962014,1745591446259,-113.95964587,0.00016438,2]
[358962017,1745591446303,-284.262,0.00016438,2]
[358962019,1745591446315,-1790.13528813,0.00016438,2]
[358962021,1745591446325,-2188.356934,0.00016438,2]
[358962022,1745591446335,-2188.35692883,0.00016438,2]
[358962024,1745591446345,-500.0,0.00016438,2]
[358962026,1745591446355,-500.0,0.00016438,2]
[358962027,1745591446364,-507.13101537,0.00016438,2]
[358962029,1745591446373,-500.0,0.00016438,2]
[358962031,1745591446383,-500.0,0.00016438,2]
[358962032,1745591446392,-500.0,0.00016438,2]
[358962034,1745591446401,-500.0,0.00016438,2]
[358962037,1745591446410,-500.0,0.00016438,2]
[358962039,1745591446420,-500.0,0.00016438,2]
[358962042,1745591446430,-500.0,0.00016438,2]
[358962053,1745591446576,-500.0,0.00016438,2]